[Event "Titled Tuesday Blitz May 16 Early 2023"]
[White "Maxfan2008"]
[Black "Matveeva, Olga"]
[BlackFideId "24107018"]
[WhiteElo "2525"]
[BlackElo "2009"]
[Result "1-0"]
[Round "06"]
[TimeControl "180+2"]
[Date "2023.05.16"]
[WhiteClock "0:00:16"]
[BlackClock "0:00:00"]

1. d4 {[%clk 0:03:00]}  Nf6 {[%clk 0:02:59]} 2. c4 {[%clk 0:02:59]}  g6 {[%clk 0:02:59]} 3. Nf3 {[%clk 0:02:59]}  Bg7 {[%clk 0:02:58]} 4. g3 {[%clk 0:03:00]}  O-O {[%clk 0:02:55]} 5. Bg2 {[%clk 0:03:01]}  d6 {[%clk 0:02:55]} 6. O-O {[%clk 0:03:01]}  c6 {[%clk 0:02:55]} 7. Nc3 {[%clk 0:03:01]}  Qa5 {[%clk 0:02:55]} 8. e4 {[%clk 0:02:59]}  Bg4 {[%clk 0:02:53]} 9. Be3 {[%clk 0:02:57]}  Nbd7 {[%clk 0:02:47]} 10. h3 {[%clk 0:02:56]}  Bxf3 {[%clk 0:02:46]} 11. Bxf3 {[%clk 0:02:55]}  e5 {[%clk 0:02:46]} 12. Qc2 {[%clk 0:02:50]}  exd4 {[%clk 0:02:35]} 13. Bxd4 {[%clk 0:02:49]}  Rfe8 {[%clk 0:02:31]} 14. Rad1 {[%clk 0:02:47]}  Ne5 {[%clk 0:02:22]} 15. Be2 {[%clk 0:02:40]}  Rad8 {[%clk 0:02:03]} 16. f4 {[%clk 0:02:34]}  Ned7 {[%clk 0:02:00]} 17. Bf3 {[%clk 0:02:33]}  Nc5 {[%clk 0:01:53]} 18. a3 {[%clk 0:02:22]}  Ne6 {[%clk 0:01:51]} 19. Bf2 {[%clk 0:02:17]}  Qc7 {[%clk 0:01:45]} 20. Rfe1 {[%clk 0:02:16]}  a5 {[%clk 0:01:41]} 21. Na4 {[%clk 0:02:09]}  Nd7 {[%clk 0:01:35]} 22. b4 {[%clk 0:02:04]}  axb4 {[%clk 0:01:34]} 23. axb4 {[%clk 0:02:05]}  Ra8 {[%clk 0:01:33]} 24. c5 {[%clk 0:01:54]}  dxc5 {[%clk 0:01:24]} 25. bxc5 {[%clk 0:01:55]}  h5 {[%clk 0:01:15]} 26. Nb6 {[%clk 0:01:44]}  Nxb6 {[%clk 0:01:13]} 27. cxb6 {[%clk 0:01:45]}  Qe7 {[%clk 0:01:12]} 28. e5 {[%clk 0:01:40]}  h4 {[%clk 0:01:10]} 29. Rd6 {[%clk 0:01:34]}  hxg3 {[%clk 0:01:09]} 30. Bxg3 {[%clk 0:01:34]}  Bh6 {[%clk 0:01:03]} 31. f5 {[%clk 0:01:30]}  Ng5 {[%clk 0:00:58]} 32. Bg2 {[%clk 0:01:26]}  Ra3 {[%clk 0:00:48]} 33. f6 {[%clk 0:01:08]}  Qf8 {[%clk 0:00:45]} 34. Qf2 {[%clk 0:00:56]}  Ne6 {[%clk 0:00:31]} 35. Rd7 {[%clk 0:00:52]}  Nc5 {[%clk 0:00:28]} 36. e6 {[%clk 0:00:32]}  Rxe6 {[%clk 0:00:20]} 37. Rxe6 {[%clk 0:00:30]}  Nxe6 {[%clk 0:00:20]} 38. Bd6 {[%clk 0:00:28]}  Qe8 {[%clk 0:00:19]} 39. Re7 {[%clk 0:00:28]}  Qd8 {[%clk 0:00:18]} 40. Bxa3 {[%clk 0:00:27]}  Qd1+ {[%clk 0:00:16]} 41. Bf1 {[%clk 0:00:26]}  Qb3 {[%clk 0:00:07]} 42. Rxe6 {[%clk 0:00:24]}  Qxe6 {[%clk 0:00:06]} 43. Bc5 {[%clk 0:00:21]}  Qd5 {[%clk 0:00:05]} 44. Bg2 {[%clk 0:00:20]}  Qd1+ {[%clk 0:00:04]} 45. Kh2 {[%clk 0:00:21]}  Qc1 {[%clk 0:00:04]} 46. Bd6 {[%clk 0:00:18]}  Qc4 {[%clk 0:00:03]} 47. Bc7 {[%clk 0:00:17]}  Qc1 {[%clk 0:00:00]} 48. Qh4 {[%clk 0:00:16]} 1-0


[Site "https://www.chess.com"]

[Event "Titled Tuesday Blitz May 16 Early 2023"]
[White "cristianserban1"]
[Black "Topalov, Aleksandar"]
[BlackFideId "925659"]
[WhiteElo "2514"]
[BlackElo "2151"]
[Result "1-0"]
[Round "06"]
[TimeControl "180+2"]
[Date "2023.05.16"]
[WhiteClock "0:01:36"]
[BlackClock "0:00:15"]

1. d4 {[%clk 0:03:00]}  Nf6 {[%clk 0:02:51]} 2. Bf4 {[%clk 0:03:01]}  g6 {[%clk 0:02:43]} 3. Nc3 {[%clk 0:03:01]}  d5 {[%clk 0:02:42]} 4. e3 {[%clk 0:03:01]}  c6 {[%clk 0:02:42]} 5. Nf3 {[%clk 0:02:59]}  Bg7 {[%clk 0:02:41]} 6. h3 {[%clk 0:03:00]}  O-O {[%clk 0:02:40]} 7. Be2 {[%clk 0:03:00]}  Nbd7 {[%clk 0:02:29]} 8. O-O {[%clk 0:03:00]}  Ne8 {[%clk 0:02:21]} 9. e4 {[%clk 0:02:48]}  dxe4 {[%clk 0:02:15]} 10. Nxe4 {[%clk 0:02:49]}  Ndf6 {[%clk 0:02:14]} 11. Nxf6+ {[%clk 0:02:46]}  Nxf6 {[%clk 0:02:12]} 12. c3 {[%clk 0:02:46]}  Bf5 {[%clk 0:01:59]} 13. Qd2 {[%clk 0:02:39]}  Qb6 {[%clk 0:01:41]} 14. Rfe1 {[%clk 0:02:38]}  Rfe8 {[%clk 0:01:40]} 15. Ne5 {[%clk 0:02:32]}  Be6 {[%clk 0:01:28]} 16. Nd3 {[%clk 0:02:13]}  Rad8 {[%clk 0:01:25]} 17. Be5 {[%clk 0:01:58]}  Bc4 {[%clk 0:01:18]} 18. Nc5 {[%clk 0:01:53]}  Qxc5 {[%clk 0:01:16]} 19. dxc5 {[%clk 0:01:51]}  Rxd2 {[%clk 0:01:15]} 20. Bxc4 {[%clk 0:01:50]}  Rxb2 {[%clk 0:01:15]} 21. Rab1 {[%clk 0:01:50]}  Rxb1 {[%clk 0:01:11]} 22. Rxb1 {[%clk 0:01:50]}  Ne4 {[%clk 0:01:06]} 23. Bxg7 {[%clk 0:01:51]}  Kxg7 {[%clk 0:01:05]} 24. Rxb7 {[%clk 0:01:52]}  Nxc5 {[%clk 0:00:35]} 25. Rxa7 {[%clk 0:01:50]}  Kf6 {[%clk 0:00:34]} 26. Rc7 {[%clk 0:01:46]}  Ne4 {[%clk 0:00:26]} 27. Rxc6+ {[%clk 0:01:45]}  e6 {[%clk 0:00:27]} 28. Bd3 {[%clk 0:01:42]}  Nd2 {[%clk 0:00:20]} 29. a4 {[%clk 0:01:42]}  Rd8 {[%clk 0:00:19]} 30. Bc2 {[%clk 0:01:37]}  Ne4 {[%clk 0:00:15]} 31. Bxe4 {[%clk 0:01:36]} 1-0


[Site "https://www.chess.com"]

[Event "Titled Tuesday Blitz May 16 Early 2023"]
[White "Roberz12"]
[Black "Tomiello, Mateus Costamilan"]
[BlackFideId "22701958"]
[WhiteElo "2356"]
[BlackElo "1990"]
[Result "0-1"]
[Round "06"]
[TimeControl "180+2"]
[Date "2023.05.16"]
[WhiteClock "0:00:06"]
[BlackClock "0:00:05"]

1. e4 {[%clk 0:02:59]}  e5 {[%clk 0:02:59]} 2. Nf3 {[%clk 0:02:59]}  Nc6 {[%clk 0:02:58]} 3. Bc4 {[%clk 0:03:00]}  Bc5 {[%clk 0:02:58]} 4. d3 {[%clk 0:02:59]}  d6 {[%clk 0:02:57]} 5. c3 {[%clk 0:02:58]}  Nf6 {[%clk 0:02:55]} 6. Bg5 {[%clk 0:02:57]}  h6 {[%clk 0:02:54]} 7. Bh4 {[%clk 0:02:56]}  a6 {[%clk 0:02:52]} 8. a4 {[%clk 0:02:56]}  g5 {[%clk 0:02:44]} 9. Bg3 {[%clk 0:02:55]}  Bg4 {[%clk 0:02:42]} 10. Nbd2 {[%clk 0:02:52]}  Qd7 {[%clk 0:02:36]} 11. Qc2 {[%clk 0:02:44]}  a5 {[%clk 0:02:04]} 12. Qb3 {[%clk 0:02:36]}  Bb6 {[%clk 0:01:55]} 13. Bb5 {[%clk 0:02:28]}  Be6 {[%clk 0:01:51]} 14. Qc2 {[%clk 0:02:28]}  h5 {[%clk 0:01:48]} 15. h4 {[%clk 0:02:26]}  g4 {[%clk 0:01:45]} 16. Ng5 {[%clk 0:02:25]}  O-O-O {[%clk 0:01:42]} 17. Nc4 {[%clk 0:02:05]}  Qe7 {[%clk 0:01:27]} 18. Nxe6 {[%clk 0:01:57]}  fxe6 {[%clk 0:01:24]} 19. Nxb6+ {[%clk 0:01:57]}  cxb6 {[%clk 0:01:24]} 20. O-O-O {[%clk 0:01:56]}  Rdf8 {[%clk 0:01:19]} 21. Qb3 {[%clk 0:01:55]}  Nd7 {[%clk 0:01:17]} 22. Bc4 {[%clk 0:01:54]}  Nc5 {[%clk 0:01:17]} 23. Qxb6 {[%clk 0:01:49]}  Nxa4 {[%clk 0:01:15]} 24. Qb5 {[%clk 0:01:42]}  Nc5 {[%clk 0:01:14]} 25. Rhe1 {[%clk 0:01:35]}  Qf6 {[%clk 0:00:43]} 26. Kb1 {[%clk 0:01:21]}  Rd8 {[%clk 0:00:41]} 27. b4 {[%clk 0:01:13]}  axb4 {[%clk 0:00:40]} 28. cxb4 {[%clk 0:01:14]}  Na6 {[%clk 0:00:34]} 29. Rc1 {[%clk 0:01:13]}  Naxb4 {[%clk 0:00:28]} 30. Bb3 {[%clk 0:00:40]}  Kb8 {[%clk 0:00:24]} 31. Rc4 {[%clk 0:00:39]}  Rc8 {[%clk 0:00:11]} 32. Rxb4 {[%clk 0:00:33]}  Nxb4 {[%clk 0:00:12]} 33. Qxb4 {[%clk 0:00:34]}  Rc6 {[%clk 0:00:11]} 34. d4 {[%clk 0:00:33]}  Rhc8 {[%clk 0:00:06]} 35. dxe5 {[%clk 0:00:31]}  dxe5 {[%clk 0:00:06]} 36. f4 {[%clk 0:00:29]}  gxf3 {[%clk 0:00:06]} 37. gxf3 {[%clk 0:00:28]}  Rc5 {[%clk 0:00:04]} 38. Bf2 {[%clk 0:00:27]}  Rc3 {[%clk 0:00:02]} 39. Qb6 {[%clk 0:00:26]}  Qxf3 {[%clk 0:00:03]} 40. Qa7+ {[%clk 0:00:25]}  Kc7 {[%clk 0:00:04]} 41. Bb6+ {[%clk 0:00:20]}  Kd7 {[%clk 0:00:04]} 42. Qxb7+ {[%clk 0:00:17]}  Ke8 {[%clk 0:00:04]} 43. Ba4+ {[%clk 0:00:12]}  Kf8 {[%clk 0:00:04]} 44. Qh7 {[%clk 0:00:06]}  Qd3+ {[%clk 0:00:04]} 45. Ka2 {[%clk 0:00:06]}  Ra3+ {[%clk 0:00:04]} 46. Kb2 {[%clk 0:00:06]}  Qc3+ {[%clk 0:00:04]} 47. Kb1 {[%clk 0:00:06]}  Ra1# {[%clk 0:00:05]} 0-1


[Site "https://www.chess.com"]

[Event "Titled Tuesday Blitz May 16 Early 2023"]
[White "Nastase, Robert-Paul"]
[Black "Yelisieiev, Yevhenii"]
[WhiteFideId "1221175"]
[BlackFideId "14139642"]
[WhiteElo "2175"]
[BlackElo "2403"]
[Result "0-1"]
[Round "06"]
[TimeControl "180+2"]
[Date "2023.05.16"]
[WhiteClock "0:00:46"]
[BlackClock "0:00:48"]

1. e4 {[%clk 0:02:56]}  d6 {[%clk 0:02:17]} 2. d4 {[%clk 0:02:51]}  Nf6 {[%clk 0:02:18]} 3. Nc3 {[%clk 0:02:50]}  e5 {[%clk 0:02:18]} 4. dxe5 {[%clk 0:02:38]}  dxe5 {[%clk 0:02:19]} 5. Qxd8+ {[%clk 0:02:38]}  Kxd8 {[%clk 0:02:19]} 6. Bc4 {[%clk 0:02:38]}  Ke8 {[%clk 0:02:19]} 7. Nf3 {[%clk 0:02:37]}  Bd6 {[%clk 0:02:19]} 8. Bg5 {[%clk 0:02:32]}  Nbd7 {[%clk 0:02:11]} 9. Nb5 {[%clk 0:02:28]}  Nxe4 {[%clk 0:02:05]} 10. Nxd6+ {[%clk 0:02:24]}  Nxd6 {[%clk 0:01:59]} 11. Bb3 {[%clk 0:02:19]}  f6 {[%clk 0:01:52]} 12. Be3 {[%clk 0:02:18]}  Nf5 {[%clk 0:01:46]} 13. Bd2 {[%clk 0:02:18]}  Nc5 {[%clk 0:01:44]} 14. Bc4 {[%clk 0:02:00]}  Be6 {[%clk 0:01:38]} 15. Bxe6 {[%clk 0:01:59]}  Nxe6 {[%clk 0:01:38]} 16. O-O-O {[%clk 0:02:00]}  Rd8 {[%clk 0:01:35]} 17. Rhe1 {[%clk 0:01:58]}  Kf7 {[%clk 0:01:33]} 18. g3 {[%clk 0:01:45]}  Rd5 {[%clk 0:01:15]} 19. Bc3 {[%clk 0:01:12]}  Rxd1+ {[%clk 0:01:11]} 20. Kxd1 {[%clk 0:01:09]}  Rd8+ {[%clk 0:01:12]} 21. Kc1 {[%clk 0:01:10]}  Nfd4 {[%clk 0:01:03]} 22. Nxd4 {[%clk 0:00:50]}  Nxd4 {[%clk 0:00:58]} 23. h4 {[%clk 0:00:51]}  h5 {[%clk 0:00:54]} 24. Bd2 {[%clk 0:00:46]}  Nf3 {[%clk 0:00:48]} 0-1


[Site "https://www.chess.com"]

[Event "Titled Tuesday Blitz May 16 Early 2023"]
[White "Bilan, Danila"]
[Black "Llanos, Guillermo"]
[WhiteFideId "24161918"]
[BlackFideId "100358"]
[WhiteElo "2182"]
[BlackElo "2225"]
[Result "1-0"]
[Round "06"]
[TimeControl "180+2"]
[Date "2023.05.16"]
[WhiteClock "0:00:20"]
[BlackClock "0:00:17"]

1. d4 {[%clk 0:02:54]}  Nf6 {[%clk 0:02:58]} 2. Nf3 {[%clk 0:02:54]}  b6 {[%clk 0:02:58]} 3. g3 {[%clk 0:02:54]}  Bb7 {[%clk 0:02:57]} 4. Bg2 {[%clk 0:02:55]}  c5 {[%clk 0:02:57]} 5. c4 {[%clk 0:02:50]}  cxd4 {[%clk 0:02:56]} 6. Qxd4 {[%clk 0:02:50]}  Nc6 {[%clk 0:02:56]} 7. Qd1 {[%clk 0:02:45]}  Rc8 {[%clk 0:02:55]} 8. O-O {[%clk 0:02:41]}  g6 {[%clk 0:02:54]} 9. b3 {[%clk 0:02:31]}  Bg7 {[%clk 0:02:53]} 10. Bb2 {[%clk 0:02:31]}  O-O {[%clk 0:02:53]} 11. Nc3 {[%clk 0:02:30]}  Ne4 {[%clk 0:02:43]} 12. Qc1 {[%clk 0:02:21]}  Nxc3 {[%clk 0:02:42]} 13. Bxc3 {[%clk 0:02:22]}  Bxc3 {[%clk 0:02:41]} 14. Qxc3 {[%clk 0:02:23]}  Qc7 {[%clk 0:01:57]} 15. Rad1 {[%clk 0:02:15]}  Rfd8 {[%clk 0:01:56]} 16. Qe3 {[%clk 0:02:06]}  Kg7 {[%clk 0:01:13]} 17. h4 {[%clk 0:01:57]}  h6 {[%clk 0:01:11]} 18. h5 {[%clk 0:01:52]}  g5 {[%clk 0:01:09]} 19. Nxg5 {[%clk 0:01:19]}  hxg5 {[%clk 0:01:08]} 20. Qxg5+ {[%clk 0:01:17]}  Kh8 {[%clk 0:01:05]} 21. Qh6+ {[%clk 0:00:54]}  Kg8 {[%clk 0:01:05]} 22. Be4 {[%clk 0:00:28]}  f5 {[%clk 0:00:55]} 23. Bxf5 {[%clk 0:00:23]}  Qe5 {[%clk 0:00:19]} 24. Bh7+ {[%clk 0:00:19]}  Kf7 {[%clk 0:00:19]} 25. Qg6+ {[%clk 0:00:19]}  Kf8 {[%clk 0:00:17]} 26. Qg8# {[%clk 0:00:20]} 1-0


[Site "https://www.chess.com"]

[Event "Titled Tuesday Blitz May 16 Early 2023"]
[White "Fajdetic, Hrvoje"]
[Black "Golubev, Mikhail"]
[WhiteFideId "14501945"]
[BlackFideId "14100983"]
[WhiteElo "2185"]
[BlackElo "2374"]
[Result "0-1"]
[Round "06"]
[TimeControl "180+2"]
[Date "2023.05.16"]
[WhiteClock "0:00:00"]
[BlackClock "0:00:41"]

1. d4 {[%clk 0:02:56]}  Nf6 {[%clk 0:02:59]} 2. Bf4 {[%clk 0:02:55]}  d6 {[%clk 0:02:59]} 3. Nc3 {[%clk 0:02:55]}  Nbd7 {[%clk 0:02:59]} 4. Nf3 {[%clk 0:02:54]}  c5 {[%clk 0:02:59]} 5. d5 {[%clk 0:02:48]}  b5 {[%clk 0:02:59]} 6. Nxb5 {[%clk 0:02:41]}  Qa5+ {[%clk 0:02:53]} 7. Nc3 {[%clk 0:02:40]}  Rb8 {[%clk 0:02:53]} 8. Bd2 {[%clk 0:02:28]}  Rxb2 {[%clk 0:02:52]} 9. e4 {[%clk 0:02:25]}  g6 {[%clk 0:02:52]} 10. Bc4 {[%clk 0:02:22]}  Bg7 {[%clk 0:02:50]} 11. O-O {[%clk 0:02:14]}  O-O {[%clk 0:02:50]} 12. Bb3 {[%clk 0:01:50]}  c4 {[%clk 0:02:34]} 13. Bxc4 {[%clk 0:01:46]}  Ng4 {[%clk 0:01:25]} 14. Nb5 {[%clk 0:01:11]}  Qa4 {[%clk 0:01:17]} 15. Qe2 {[%clk 0:00:31]}  Ba6 {[%clk 0:01:17]} 16. Rab1 {[%clk 0:00:24]}  Rxc2 {[%clk 0:01:03]} 17. Rfc1 {[%clk 0:00:08]}  Rxc1+ {[%clk 0:00:44]} 18. Rxc1 {[%clk 0:00:07]}  Nge5 {[%clk 0:00:43]} 19. Nxe5 {[%clk 0:00:06]}  Nxe5 {[%clk 0:00:43]} 20. Nxd6 {[%clk 0:00:02]}  Nxc4 {[%clk 0:00:42]} 21. Nxc4 {[%clk 0:00:00]}  Rc8 {[%clk 0:00:41]} 0-1


[Site "https://www.chess.com"]

[Event "Titled Tuesday Blitz May 16 Early 2023"]
[White "Shapiro, Viktor"]
[Black "Maung, Maung Kyaw Zaw Hein"]
[WhiteFideId "4175700"]
[BlackFideId "13001698"]
[WhiteElo "2152"]
[BlackElo "2019"]
[Result "1-0"]
[Round "06"]
[TimeControl "180+2"]
[Date "2023.05.16"]
[WhiteClock "0:01:28"]
[BlackClock "0:00:00"]

1. c4 {[%clk 0:03:00]}  e5 {[%clk 0:02:58]} 2. Nc3 {[%clk 0:03:01]}  Nc6 {[%clk 0:02:59]} 3. g3 {[%clk 0:03:01]}  Bc5 {[%clk 0:02:59]} 4. Bg2 {[%clk 0:03:01]}  d6 {[%clk 0:02:59]} 5. e3 {[%clk 0:03:02]}  Nge7 {[%clk 0:02:59]} 6. Nge2 {[%clk 0:03:02]}  Bg4 {[%clk 0:02:58]} 7. h3 {[%clk 0:03:02]}  Bh5 {[%clk 0:02:58]} 8. g4 {[%clk 0:03:00]}  Bg6 {[%clk 0:02:58]} 9. d4 {[%clk 0:03:00]}  exd4 {[%clk 0:02:54]} 10. exd4 {[%clk 0:03:01]}  Bb6 {[%clk 0:02:43]} 11. b4 {[%clk 0:02:55]}  a6 {[%clk 0:01:59]} 12. O-O {[%clk 0:02:53]}  O-O {[%clk 0:01:55]} 13. c5 {[%clk 0:02:48]}  dxc5 {[%clk 0:01:53]} 14. dxc5 {[%clk 0:02:47]}  Ba7 {[%clk 0:01:53]} 15. a3 {[%clk 0:02:44]}  h6 {[%clk 0:01:43]} 16. Bf4 {[%clk 0:02:42]}  Qc8 {[%clk 0:01:35]} 17. Qb3 {[%clk 0:02:38]}  Bd3 {[%clk 0:01:30]} 18. Rfe1 {[%clk 0:02:36]}  Ng6 {[%clk 0:01:28]} 19. Bg3 {[%clk 0:02:35]}  Re8 {[%clk 0:01:23]} 20. Rad1 {[%clk 0:02:30]}  Bxe2 {[%clk 0:01:19]} 21. Rxe2 {[%clk 0:02:27]}  Rxe2 {[%clk 0:01:17]} 22. Nxe2 {[%clk 0:02:27]}  Nce5 {[%clk 0:01:16]} 23. f4 {[%clk 0:02:16]}  Nd7 {[%clk 0:01:12]} 24. Qd5 {[%clk 0:02:12]}  Qe8 {[%clk 0:00:54]} 25. Kf1 {[%clk 0:02:04]}  Nf6 {[%clk 0:00:40]} 26. Qxb7 {[%clk 0:02:03]}  Rd8 {[%clk 0:00:35]} 27. Rxd8 {[%clk 0:02:01]}  Qxd8 {[%clk 0:00:36]} 28. Qxa7 {[%clk 0:01:59]}  Qd1+ {[%clk 0:00:31]} 29. Be1 {[%clk 0:02:00]}  Nh4 {[%clk 0:00:28]} 30. Qxa6 {[%clk 0:01:50]}  Kh7 {[%clk 0:00:14]} 31. Qc6 {[%clk 0:01:49]}  Qd3 {[%clk 0:00:00]} 32. Bxh4 {[%clk 0:01:28]} 1-0


[Site "https://www.chess.com"]

[Event "Titled Tuesday Blitz May 16 Early 2023"]
[White "Onslow, Alfie"]
[Black "SereneSalmon"]
[WhiteFideId "436976"]
[WhiteElo "2114"]
[BlackElo "2487"]
[Result "0-1"]
[Round "06"]
[TimeControl "180+2"]
[Date "2023.05.16"]
[WhiteClock "0:00:01"]
[BlackClock "0:00:19"]

1. Nf3 {[%clk 0:03:00]}  d5 {[%clk 0:03:00]} 2. c4 {[%clk 0:02:59]}  e6 {[%clk 0:03:00]} 3. g3 {[%clk 0:02:58]}  Nf6 {[%clk 0:03:00]} 4. d4 {[%clk 0:02:58]}  dxc4 {[%clk 0:02:59]} 5. Bg2 {[%clk 0:02:57]}  a6 {[%clk 0:03:00]} 6. O-O {[%clk 0:02:56]}  Nc6 {[%clk 0:03:00]} 7. e3 {[%clk 0:02:53]}  Rb8 {[%clk 0:02:59]} 8. Qc2 {[%clk 0:02:40]}  b5 {[%clk 0:02:56]} 9. a4 {[%clk 0:02:32]}  Bb7 {[%clk 0:02:48]} 10. Rd1 {[%clk 0:02:26]}  Nb4 {[%clk 0:02:47]} 11. Qe2 {[%clk 0:02:24]}  Be7 {[%clk 0:02:42]} 12. Nc3 {[%clk 0:02:23]}  Nbd5 {[%clk 0:02:37]} 13. axb5 {[%clk 0:02:06]}  Nxc3 {[%clk 0:02:37]} 14. bxc3 {[%clk 0:02:06]}  axb5 {[%clk 0:02:37]} 15. Ba3 {[%clk 0:01:50]}  O-O {[%clk 0:02:36]} 16. Rdb1 {[%clk 0:01:43]}  Be4 {[%clk 0:02:33]} 17. Rb2 {[%clk 0:01:34]}  Nd5 {[%clk 0:02:30]} 18. Qe1 {[%clk 0:01:22]}  Bxa3 {[%clk 0:02:25]} 19. Rxa3 {[%clk 0:01:21]}  Qe7 {[%clk 0:02:11]} 20. Ra5 {[%clk 0:01:02]}  c6 {[%clk 0:02:00]} 21. Ne5 {[%clk 0:00:59]}  Bxg2 {[%clk 0:02:01]} 22. Kxg2 {[%clk 0:00:59]}  Qc7 {[%clk 0:01:52]} 23. Rba2 {[%clk 0:00:53]}  f6 {[%clk 0:01:47]} 24. Nf3 {[%clk 0:00:32]}  c5 {[%clk 0:01:45]} 25. e4 {[%clk 0:00:30]}  Ne7 {[%clk 0:01:40]} 26. Ra7 {[%clk 0:00:18]}  Rb7 {[%clk 0:01:39]} 27. Ra8 {[%clk 0:00:18]}  b4 {[%clk 0:01:28]} 28. Rxf8+ {[%clk 0:00:13]}  Kxf8 {[%clk 0:01:29]} 29. dxc5 {[%clk 0:00:08]}  b3 {[%clk 0:01:29]} 30. Ra8+ {[%clk 0:00:08]}  Kf7 {[%clk 0:01:24]} 31. e5 {[%clk 0:00:08]}  b2 {[%clk 0:01:21]} 32. Qb1 {[%clk 0:00:07]}  Qxc5 {[%clk 0:01:16]} 33. exf6 {[%clk 0:00:06]}  Nf5 {[%clk 0:00:56]} 34. fxg7 {[%clk 0:00:05]}  Kxg7 {[%clk 0:00:53]} 35. Ng5 {[%clk 0:00:05]}  Qd5+ {[%clk 0:00:50]} 36. Kh3 {[%clk 0:00:03]}  Qd3 {[%clk 0:00:38]} 37. Qe1 {[%clk 0:00:01]}  b1=Q {[%clk 0:00:35]} 38. Qe5+ {[%clk 0:00:02]}  Kh6 {[%clk 0:00:21]} 39. Qf6+ {[%clk 0:00:02]}  Kh5 {[%clk 0:00:20]} 40. Nf7 {[%clk 0:00:01]}  Qbf1# {[%clk 0:00:19]} 0-1


[Site "https://www.chess.com"]

[Event "Titled Tuesday Blitz May 16 Early 2023"]
[White "Ljukin, Sergei"]
[Black "Rodriguez Santiago, Jaime"]
[WhiteFideId "14102200"]
[BlackFideId "3100898"]
[WhiteElo "2312"]
[BlackElo "2025"]
[Result "1-0"]
[Round "06"]
[TimeControl "180+2"]
[Date "2023.05.16"]
[WhiteClock "0:00:16"]
[BlackClock "0:00:23"]

1. e4 {[%clk 0:02:56]}  c6 {[%clk 0:02:58]} 2. d4 {[%clk 0:02:56]}  d5 {[%clk 0:02:59]} 3. e5 {[%clk 0:02:56]}  Bf5 {[%clk 0:02:58]} 4. Nd2 {[%clk 0:02:56]}  e6 {[%clk 0:02:58]} 5. Nb3 {[%clk 0:02:57]}  c5 {[%clk 0:02:50]} 6. dxc5 {[%clk 0:02:56]}  Bxc5 {[%clk 0:02:50]} 7. Nxc5 {[%clk 0:02:56]}  Qa5+ {[%clk 0:02:51]} 8. c3 {[%clk 0:02:56]}  Qxc5 {[%clk 0:02:51]} 9. Be3 {[%clk 0:02:57]}  Qc7 {[%clk 0:02:50]} 10. f4 {[%clk 0:02:57]}  Nc6 {[%clk 0:02:49]} 11. Nf3 {[%clk 0:02:58]}  h5 {[%clk 0:02:49]} 12. Be2 {[%clk 0:02:58]}  Nh6 {[%clk 0:02:45]} 13. Nd4 {[%clk 0:02:40]}  Nxd4 {[%clk 0:02:42]} 14. Bxd4 {[%clk 0:02:40]}  g6 {[%clk 0:02:37]} 15. Qa4+ {[%clk 0:02:36]}  Kf8 {[%clk 0:02:35]} 16. O-O-O {[%clk 0:02:21]}  Be4 {[%clk 0:02:33]} 17. Rhg1 {[%clk 0:02:18]}  Nf5 {[%clk 0:02:32]} 18. g3 {[%clk 0:02:14]}  a6 {[%clk 0:02:13]} 19. Qb4+ {[%clk 0:02:03]}  Kg7 {[%clk 0:02:11]} 20. Bb6 {[%clk 0:02:04]}  Qc6 {[%clk 0:02:04]} 21. h3 {[%clk 0:02:04]}  a5 {[%clk 0:01:53]} 22. Qb5 {[%clk 0:01:49]}  Rhc8 {[%clk 0:01:33]} 23. Bf2 {[%clk 0:01:15]}  a4 {[%clk 0:01:18]} 24. g4 {[%clk 0:01:11]}  hxg4 {[%clk 0:01:13]} 25. hxg4 {[%clk 0:01:11]}  Ne7 {[%clk 0:01:13]} 26. Bh4 {[%clk 0:01:11]}  Ng8 {[%clk 0:01:06]} 27. a3 {[%clk 0:01:03]}  Qc7 {[%clk 0:00:55]} 28. Bd3 {[%clk 0:00:46]}  Ra5 {[%clk 0:00:53]} 29. Qb4 {[%clk 0:00:46]}  Bxd3 {[%clk 0:00:52]} 30. Rxd3 {[%clk 0:00:45]}  Rc5 {[%clk 0:00:52]} 31. Rd4 {[%clk 0:00:24]}  b5 {[%clk 0:00:48]} 32. Re1 {[%clk 0:00:17]}  Nh6 {[%clk 0:00:47]} 33. Bf6+ {[%clk 0:00:16]}  Kg8 {[%clk 0:00:23]} 34. Rh1 {[%clk 0:00:16]} 1-0


[Site "https://www.chess.com"]

[Event "Titled Tuesday Blitz May 16 Early 2023"]
[White "Dobre, Claudiu-Cristian"]
[Black "Klepikov, Nikita"]
[WhiteFideId "1211854"]
[BlackFideId "24145220"]
[WhiteElo "2207"]
[BlackElo "2025"]
[Result "0-1"]
[Round "06"]
[TimeControl "180+2"]
[Date "2023.05.16"]
[WhiteClock "0:00:00"]
[BlackClock "0:00:07"]

1. e4 {[%clk 0:03:00]}  c5 {[%clk 0:02:59]} 2. b3 {[%clk 0:03:00]}  e5 {[%clk 0:02:49]} 3. Bb2 {[%clk 0:03:00]}  d6 {[%clk 0:02:50]} 4. Nc3 {[%clk 0:02:53]}  Nc6 {[%clk 0:02:48]} 5. Bc4 {[%clk 0:02:53]}  g6 {[%clk 0:02:14]} 6. Nge2 {[%clk 0:02:46]}  Bg7 {[%clk 0:02:14]} 7. d3 {[%clk 0:02:40]}  Nge7 {[%clk 0:02:14]} 8. O-O {[%clk 0:02:39]}  O-O {[%clk 0:02:08]} 9. Nd5 {[%clk 0:02:32]}  Rb8 {[%clk 0:01:55]} 10. a4 {[%clk 0:02:29]}  b6 {[%clk 0:01:50]} 11. f4 {[%clk 0:02:28]}  a6 {[%clk 0:01:45]} 12. Ng3 {[%clk 0:02:08]}  b5 {[%clk 0:01:41]} 13. axb5 {[%clk 0:02:06]}  axb5 {[%clk 0:01:41]} 14. Nxe7+ {[%clk 0:01:39]}  Nxe7 {[%clk 0:01:42]} 15. Bd5 {[%clk 0:01:25]}  Nxd5 {[%clk 0:01:42]} 16. exd5 {[%clk 0:01:25]}  f5 {[%clk 0:01:19]} 17. fxe5 {[%clk 0:01:22]}  dxe5 {[%clk 0:01:19]} 18. c4 {[%clk 0:01:22]}  bxc4 {[%clk 0:01:14]} 19. dxc4 {[%clk 0:01:22]}  Qb6 {[%clk 0:01:07]} 20. Re1 {[%clk 0:00:32]}  Re8 {[%clk 0:00:57]} 21. Ra3 {[%clk 0:00:30]}  Bd7 {[%clk 0:00:56]} 22. Qa1 {[%clk 0:00:29]}  Qd6 {[%clk 0:00:49]} 23. Ra6 {[%clk 0:00:18]}  Qe7 {[%clk 0:00:48]} 24. d6 {[%clk 0:00:10]}  Qe6 {[%clk 0:00:43]} 25. Qd1 {[%clk 0:00:10]}  Ra8 {[%clk 0:00:34]} 26. Rxa8 {[%clk 0:00:09]}  Rxa8 {[%clk 0:00:33]} 27. Qc2 {[%clk 0:00:07]}  Qxd6 {[%clk 0:00:25]} 28. Rd1 {[%clk 0:00:07]}  Qe6 {[%clk 0:00:20]} 29. Qd3 {[%clk 0:00:07]}  e4 {[%clk 0:00:15]} 30. Qxd7 {[%clk 0:00:06]}  Qxd7 {[%clk 0:00:16]} 31. Rxd7 {[%clk 0:00:05]}  Bxb2 {[%clk 0:00:16]} 32. Ne2 {[%clk 0:00:05]}  Rb8 {[%clk 0:00:13]} 33. Rd5 {[%clk 0:00:05]}  Ba3 {[%clk 0:00:08]} 34. Rd7 {[%clk 0:00:02]}  Rxb3 {[%clk 0:00:09]} 35. Nf4 {[%clk 0:00:02]}  Rb2 {[%clk 0:00:08]} 36. Ne6 {[%clk 0:00:02]}  Rc2 {[%clk 0:00:07]} 37. Rg7+ {[%clk 0:00:01]}  Kh8 {[%clk 0:00:07]} 38. Ra7 {[%clk 0:00:00]}  h5 {[%clk 0:00:07]} 0-1


[Site "https://www.chess.com"]